bitfinex-derivatives/quotes_ETHF0:USTF0_20250404
["timestamp","ask_amount","ask_price","bid_price","bid_amount"]
[1743790237481,7.24255,1814.5,1814.4,0.00826902]
[1743790237780,1.10298,1814.0,1813.7,7.6959]
[1743790237983,8.54274,1814.1,1813.9,1.10296]
[1743790238186,7.4398,1814.1,1814.0,1.10295]
[1743790238479,1.9027,1814.2,1814.1,1.10289]
[1743790238680,6.1337,1814.2,1814.1,1.10289]
[1743790239185,3.2078,1814.3,1814.2,1.10283]
[1743790240279,3.2078,1814.5,1814.4,1.10271]
[1743790240878,4.31045,1814.5,1814.4,1.10271]
[1743790241081,1.91096902,1814.7,1814.6,1.10259]
[1743790243086,0.00826902,1814.7,1814.6,1.10259]
[1743790243986,1.10269,1814.5,1814.2,1.809]
[1743790244179,3.2078,1814.5,1814.3,1.10273]
[1743790244382,4.31048,1814.5,1814.3,1.10273]
[1743790244688,8.01228,1814.5,1814.2,1.829]
[1743790244877,6.9096,1814.5,1814.2,4.58605]
[1743790245076,6.9096,1814.5,1814.4,1.10271]
[1743790245391,4.23926902,1814.7,1814.6,1.10259]
[1743790245583,0.00826902,1814.7,1814.6,1.10259]
[1743790247386,0.00826902,1814.7,1814.5,1.829]
[1743790247686,5.34083902,1814.7,1814.5,1.1026]
[1743790247889,4.23826902,1814.7,1814.5,1.10265]
[1743790248088,5.34083902,1814.7,1814.5,1.10265]
[1743790248389,3.2078,1814.6,1814.5,1.10265]
[1743790248584,3.2078,1814.6,1814.4,3.01786]
[1743790248780,5.1098,1814.6,1814.4,1.10266]
[1743790248982,6.21241,1814.6,1814.4,1.10266]
[1743790249184,1.10269,1814.5,1814.4,1.10271]
[1743790249384,1.8774,1814.5,1814.2,1.9152]
[1743790249785,1.8774,1814.5,1814.3,1.10274]
[1743790249990,1.10271,1814.4,1814.3,1.10274]
[1743790250293,1.10283,1814.2,1814.1,6.97285]
[1743790250587,1.10283,1814.2,1814.1,1.10289]
[1743790250793,7.4378,1814.4,1814.1,1.10289]
[1743790250985,1.10281,1814.3,1814.2,1.10283]
[1743790251182,8.54056,1814.4,1814.2,1.10283]
[1743790251387,1.10277,1814.3,1814.0,5.1232]
[1743790251692,7.4378,1814.4,1814.2,1.10279]
[1743790252088,1.8774,1814.5,1814.0,5.1232]
[1743790252390,1.8774,1814.5,1814.4,1.10271]
[1743790252590,3.7749,1814.6,1814.5,1.10265]
[1743790252786,0.00826902,1814.7,1814.6,1.10259]
[1743790253188,1.8817,1815.1,1814.7,2.75621]
[1743790253388,3.19346075,1815.6,1814.7,2.75621]
[1743790253389,1.7907,1815.4,1815.3,1.10216]
[1743790253792,3.7281,1815.4,1815.3,1.10216]
[1743790254190,3.2078,1815.5,1815.4,1.1021]
[1743790254387,3.76726902,1815.5,1815.4,1.1021]
[1743790254583,3.21606902,1815.5,1815.4,1.1021]
[1743790254993,2.49686902,1815.5,1815.4,1.1021]
[1743790255190,1.94566902,1815.5,1815.4,1.1021]
[1743790255897,0.00826902,1815.5,1815.4,1.1021]
[1743790256090,0.00826902,1815.5,1815.4,6.8099]
[1743790256291,34.74,1816.0,1815.8,1.10184]
[1743790256587,1.9167,1815.9,1815.8,1.10184]
[1743790257193,40.16444,1816.0,1815.5,45.30893]
[1743790257194,39.0627,1816.0,1815.5,42.5539]
[1743790257394,39.07096902,1816.0,1815.8,1.1018]
[1743790257593,1.9167,1815.9,1815.8,1.1018]
[1743790258590,39.07096902,1816.0,1815.5,47.05558]
[1743790258591,38.51976902,1816.0,1815.9,1.1018]
[1743790259090,41.53822902,1816.0,1815.8,1.10181]
[1743790259298,41.53822902,1816.0,1815.7,1.7539]
[1743790259299,40.43646902,1816.0,1815.9,1.1018]
[1743790259689,40.43646902,1816.0,1815.7,1.7539]
[1743790260193,7.4348,1815.9,1815.4,1.10206]
[1743790260388,7.4348,1815.9,1815.4,1.1021]
[1743790260389,4.30982,1815.6,1815.4,1.1021]
[1743790260591,2.86165,1815.5,1815.3,2.99713]
[1743790260892,5.5102,1815.5,1815.2,3.21606902]
[1743790261199,5.5102,1815.5,1815.2,4.31825902]
[1743790261397,5.5102,1815.5,1815.2,3.21606902]
[1743790261593,5.5102,1815.5,1815.4,1.1021]
[1743790261892,5.5102,1815.5,1815.3,1.895]
[1743790262190,5.5102,1815.5,1815.2,0.00826902]
[1743790262586,5.5102,1815.5,1815.4,1.1021]
[1743790263486,3.5874,1815.5,1815.4,1.1021]
[1743790263686,9.2723,1815.9,1815.8,1.10186]
[1743790263888,1.8385,1815.9,1815.8,1.10186]
[1743790264093,34.74826902,1816.0,1815.9,1.1018]
[1743790264305,0.00826902,1816.0,1815.9,1.1018]
[1743790264794,3.2078,1816.3,1816.2,1.10161]
[1743790264992,2.2078,1816.3,1816.2,1.10161]
[1743790265192,1.804,1816.3,1816.2,1.10161]
[1743790265387,36.3756,1816.6,1816.2,2.5]
[1743790265388,34.723,1816.6,1816.2,2.5]
[1743790265595,3.01469,1816.8,1816.6,1.10137]
[1743790265787,1.9134,1816.8,1816.3,1.91]
[1743790265993,1.9134,1816.8,1816.7,1.10131]
[1743790266199,2.4646,1816.8,1816.5,0.00826902]
[1743790266399,3.2078,1816.6,1816.5,1.91826902]
[1743790266594,3.2078,1816.6,1816.5,0.00826902]
[1743790266799,8.72257,1816.6,1816.5,0.00826902]
[1743790267293,5.1212,1816.6,1816.5,0.00826902]
[1743790267495,6.22257,1816.6,1816.5,0.00826902]
[1743790268196,5.1212,1816.6,1816.5,0.00826902]
[1743790268403,5.1212,1816.6,1816.5,1.10969902]
[1743790268905,6.22257,1816.6,1816.5,0.00826902]
[1743790269100,8.72257,1816.6,1816.5,0.00826902]
[1743790269296,1.10167,1816.1,1815.9,1.10178]
[1743790269501,6.10346,1816.0,1815.8,3.03183]
[1743790269800,1.7939,1816.0,1815.9,1.1018]
[1743790270194,5.0017,1816.0,1815.8,1.93]
[1743790270492,5.0017,1816.0,1815.7,3.21606902]
[1743790270694,4.30966,1815.8,1815.7,0.00826902]
[1743790271098,8.60356,1815.8,1815.7,0.00826902]
[1743790271996,1.1021,1815.4,1815.3,1.93]
[1743790272205,1.10219,1815.3,1815.1,2.90716]
[1743790272393,1.10222,1815.2,1815.1,1.8049]
[1743790272596,2.97757,1815.3,1815.1,2.90715]
[1743790272900,1.10222,1815.2,1815.1,1.8049]
[1743790273100,1.8754,1815.2,1815.1,2.90718]
[1743790273295,9.3062,1815.2,1815.0,0.00826902]
[1743790273501,7.9874,1815.2,1815.1,1.10228]
[1743790273801,9.08962,1815.2,1815.0,1.11057902]
[1743790274103,7.9874,1815.2,1815.0,1.11057902]
[1743790274303,7.9874,1815.2,1815.1,1.10228]
[1743790274504,7.9874,1815.2,1815.1,2.84848]
[1743790274706,7.9874,1815.2,1815.1,1.7462]
[1743790275099,7.9874,1815.2,1815.1,2.84848]
[1743790275602,4.223,1815.2,1815.1,2.84848]
[1743790275904,2.43446902,1815.9,1815.8,1.10186]
[1743790275905,0.00826902,1815.9,1815.8,1.10186]
[1743790276300,0.00826902,1815.9,1815.8,6.80966]
[1743790276494,0.00826902,1815.9,1815.8,44.40186]
[1743790276902,0.00826902,1815.9,1815.8,47.60966]
[1743790277403,0.00826902,1815.9,1815.8,44.40186]
[1743790277805,0.00826902,1815.9,1815.8,47.60966]
[1743790278006,0.00826902,1815.9,1815.8,45.10966]
[1743790278210,0.00826902,1815.9,1815.8,41.90186]
[1743790278503,1.90336902,1815.9,1815.8,1.10186]
[1743790278698,0.00826902,1815.9,1815.8,1.10186]
[1743790278912,0.00826902,1815.9,1815.8,41.90186]
[1743790280405,0.00826902,1815.9,1815.8,1.10186]
[1743790281912,12.69256902,1815.9,1815.5,1.10202]
[1743790282212,3.6874,1815.8,1815.4,1.9015]
[1743790282503,3.2078,1815.7,1815.6,1.10198]
[1743790282708,4.9611,1815.7,1815.6,1.10198]
[1743790282905,1.7533,1815.7,1815.6,1.10198]
[1743790283110,0.00826902,1815.9,1815.8,1.10186]
[1743790283310,1.76156902,1815.9,1815.8,1.10186]
[1743790284013,4.96936902,1815.9,1815.4,3.2078]
[1743790284206,1.10207,1815.5,1815.2,3.2078]
[1743790284402,1.10207,1815.5,1815.3,1.10213]
[1743790284403,1.9105,1815.4,1815.3,1.10213]
[1743790284602,1.9105,1815.4,1815.2,3.2078]
[1743790284904,1.10228,1815.1,1815.0,0.00826902]
[1743790285206,6.40832523,1815.1,1814.3,3.2078]
[1743790285411,3.2078,1814.8,1814.3,1.10272]
[1743790285616,3.2078,1814.8,1814.5,1.1026]
[1743790285617,7.23405,1814.7,1814.5,1.1026]
[1743790285809,6.1315,1814.7,1814.6,1.10259]
[1743790286006,1.9105,1814.7,1814.6,1.10259]
[1743790289613,1.10259,1814.6,1814.5,0.00826902]
[1743790289809,1.10282,1814.3,1814.1,2.85167]
[1743790290005,7.4288,1814.3,1814.1,2.85167]
[1743790290210,1.9187,1814.2,1814.1,2.85167]
[1743790291016,7.4288,1814.3,1814.2,1.10283]
[1743790291217,6.1397,1814.3,1814.2,2.85163]
[1743790291420,4.222,1814.4,1814.3,1.10273]
[1743790292020,1.9187,1814.4,1814.3,1.10273]
[1743790292320,4.222,1814.7,1814.2,4.50582]
[1743790292717,1.749,1814.6,1814.5,1.10259]
[1743790292912,1.749,1814.6,1814.5,41.90259]
[1743790293119,1.749,1814.6,1814.5,40.8]
[1743790293120,2.85159,1814.6,1814.5,40.8]
[1743790293319,6.05939,1814.6,1814.5,40.8]
[1743790293816,1.10275,1814.4,1814.2,1.7488]
[1743790294010,1.749,1814.3,1813.9,2.75743]
[1743790294212,7.4298,1814.4,1814.2,1.10283]
[1743790294418,7.4298,1814.4,1814.3,2.92797]
[1743790294817,7.4298,1814.4,1814.2,1.10281]
[1743790295018,8.53253,1814.4,1814.2,1.10281]
[1743790295323,7.4298,1814.4,1814.0,2.92812]
[1743790295617,7.4298,1814.4,1813.7,7.8996]
[1743790295618,3.2078,1814.2,1813.7,5.1419]
[1743790295814,3.2078,1814.0,1813.8,1.8068]
[1743790296017,4.31076,1814.0,1813.8,2.90985]
[1743790296213,5.32491,1814.1,1813.8,1.8068]
[1743790296412,4.8628,1814.0,1813.8,1.8068]
[1743790296616,3.7598,1814.0,1813.8,2.90985]
[1743790296816,4.86277,1814.0,1813.8,2.90987]
[1743790297021,4.86276,1814.0,1813.8,1.8068]
[1743790297223,4.86277,1814.0,1813.8,2.90987]
[1743790297417,3.7598,1814.0,1813.8,2.90987]
[1743790297620,3.7598,1814.0,1813.9,1.10301]
[1743790297820,0.552,1814.0,1813.9,2.90981]
[1743790298118,5.32492,1814.1,1814.0,1.10295]
[1743790298119,4.222,1814.1,1814.0,1.10295]
[1743790298319,4.222,1814.1,1814.0,2.90975]
[1743790299418,3.7598,1814.2,1814.1,1.10289]
[1743790300026,3.2078,1814.2,1814.1,1.10289]
[1743790301120,4.222,1814.4,1814.3,1.10277]
[1743790302124,3.7598,1814.5,1814.4,1.10271]
[1743790303021,3.2078,1814.5,1814.4,1.10271]
[1743790303620,4.31047,1814.5,1814.2,1.7979]
[1743790303821,3.2078,1814.5,1814.4,1.10271]
[1743790304721,1.10273,1814.4,1814.3,1.10276]
[1743790305029,4.31048,1814.5,1814.4,1.10271]
[1743790305423,3.2078,1814.5,1814.4,1.10271]
[1743790305624,3.2078,1814.5,1814.2,1.7979]
[1743790305930,1.10276,1814.4,1814.3,1.10277]
[1743790306226,3.2078,1814.5,1814.2,1.7979]
[1743790306416,3.2078,1814.5,1814.4,1.10271]
[1743790306828,4.31045,1814.5,1814.4,1.10271]
[1743790307015,4.31045,1814.5,1814.2,1.7979]
[1743790307220,3.2078,1814.5,1814.4,1.10271]
[1743790307824,4.31045,1814.5,1814.4,1.10271]
[1743790308024,3.2078,1814.5,1814.3,1.10274]
[1743790308223,3.2078,1814.5,1813.6,0.74477809]
[1743790308528,3.2078,1814.1,1813.9,3.00537]
[1743790308725,8.53172,1814.1,1814.0,1.10295]
[1743790308926,1.10295,1814.0,1813.9,3.00536]
[1743790309122,7.4288,1814.1,1813.9,3.00536]
[1743790309123,8.53174,1814.1,1814.0,1.10295]
[1743790309317,7.4288,1814.1,1813.9,1.9024]
[1743790309519,1.10299,1814.0,1813.9,1.10301]
[1743790310224,8.5317,1814.1,1813.7,4.66011]
[1743790310422,7.4288,1814.1,1814.0,1.10295]
[1743790310823,4.221,1814.1,1814.0,1.10295]
[1743790311831,5.32389,1814.1,1814.0,1.10295]
[1743790312038,4.221,1814.1,1814.0,1.10295]
[1743790312531,1.7521,1814.3,1814.2,1.10283]
[1743790313030,3.2078,1814.3,1814.2,1.10279]
[1743790313436,7.14221,1814.4,1814.3,1.10277]
[1743790313729,7.14221,1814.4,1814.1,1.8439]
[1743790313936,4.221,1814.4,1814.3,1.10277]
[1743790314331,7.09833,1814.4,1814.3,1.10277]
[1743790314532,5.9956,1814.4,1814.3,1.10277]
[1743790314931,7.09831,1814.4,1814.3,1.10277]
[1743790315131,5.9956,1814.4,1814.3,1.10277]
[1743790315629,4.221,1814.4,1814.3,1.10277]
[1743790315935,4.7722,1814.4,1814.1,1.8439]
[1743790316233,1.10283,1814.2,1814.1,2.94676]
[1743790316434,6.08521,1814.3,1814.1,1.8439]
[1743790316635,6.08521,1814.3,1814.2,1.10283]
[1743790317133,4.9824,1814.3,1814.2,1.10283]
[1743790317433,1.7746,1814.3,1814.2,1.10283]
[1743790317637,1.7746,1814.3,1814.2,1.8529024]
[1743790317933,1.7746,1814.3,1814.2,1.10283]
[1743790318135,0.5512,1814.4,1814.3,1.10277]
[1743790318332,3.2078,1814.5,1814.3,2.65046062]
[1743790318530,0.5512,1814.7,1814.6,1.10259]
[1743790318734,1.10252,1814.7,1814.6,1.10259]
[1743790318934,2.86112902,1814.8,1814.7,1.10252]
[1743790319228,0.00826902,1814.8,1814.7,1.10252]
[1743790319434,1.11077902,1814.8,1814.5,4.6567]
[1743790319633,2.86117902,1814.8,1814.7,1.10252]
[1743790319831,2.86117902,1814.8,1814.5,4.6567]
[1743790319832,5.97866902,1814.8,1814.5,3.00279]
[1743790320036,3.2078,1814.6,1814.5,3.00279]
[1743790320530,3.2078,1814.6,1814.1,2.7571]
[1743790320730,1.9091,1814.5,1814.4,1.10271]
[1743790320935,3.01175,1814.5,1814.4,1.10271]
[1743790321237,1.9091,1814.5,1814.4,1.10271]
[1743790321437,1.8264,1814.7,1814.6,1.10259]
[1743790321628,4.83802,1814.7,1814.6,1.10259]
[1743790322235,3.7355,1814.7,1814.6,1.10259]
[1743790322538,0.00826902,1814.8,1814.7,1.10252]
[1743790322835,3.21606902,1814.8,1814.7,2.84892]
[1743790323023,0.00826902,1814.8,1814.7,2.84892]
[1743790323227,0.00826902,1814.8,1814.3,2.7569]
[1743790323228,3.21606902,1814.8,1814.3,2.7569]
[1743790323427,3.21606902,1814.8,1814.2,3.2078]
[1743790323428,3.2078,1814.6,1814.4,3.62152339]
[1743790323634,1.7507,1814.5,1814.4,2.87129]
[1743790324438,3.2078,1814.6,1814.5,1.10265]
[1743790324636,4.31039,1814.6,1814.5,1.7686]
[1743790324935,2.75663,1814.5,1814.0,2.75738]
[1743790325138,2.75663,1814.5,1814.2,2.75708]
[1743790325139,3.6352,1814.5,1814.2,2.75708]
[1743790325439,8.52941,1814.6,1814.5,1.10265]
[1743790325637,7.4268,1814.6,1814.3,2.87134]
[1743790325832,1.10268,1814.5,1814.1,5.51446]
[1743790326025,2.85337,1814.5,1814.2,2.51934928]
[1743790326231,4.31052,1814.4,1814.2,1.7686]
[1743790326433,1.904,1814.3,1814.2,2.87143]
[1743790326638,1.7677,1814.4,1814.3,1.10277]
[1743790326839,2.87045,1814.4,1814.2,2.8714]
[1743790327140,1.904,1814.3,1814.2,2.8714]
[1743790327333,1.904,1814.3,1814.2,1.7686]
[1743790327536,1.904,1814.3,1814.2,2.87143]
[1743790327938,1.904,1814.3,1814.2,3.62229745]
[1743790328437,1.7677,1814.4,1814.3,1.10277]
[1743790329234,3.5309,1814.4,1814.3,1.10277]
[1743790329839,3.5309,1814.4,1814.3,1.85356739]
[1743790330040,3.5309,1814.4,1814.3,1.10277]
[1743790331735,1.10265,1814.5,1814.4,1.10271]
[1743790331937,2.86585,1814.5,1814.4,1.10271]
[1743790332136,1.7632,1814.5,1814.4,1.10271]
[1743790332944,1.10273,1814.4,1814.2,1.7686]
[1743790333142,8.52943,1814.6,1814.2,4.52565]
[1743790333343,1.8963,1814.5,1814.4,1.10271]
[1743790333743,3.2078,1814.6,1814.5,1.10265]
[1743790333949,9.3211,1814.6,1814.5,1.10265]
[1743790335045,1.1027,1814.5,1814.1,8.72203]
[1743790335237,1.7475,1814.5,1814.2,2.49518819]
[1743790335543,1.10272,1814.4,1814.3,1.10274]
[1743790335741,2.85018,1814.5,1814.4,1.10271]
[1743790336045,1.65391,1814.4,1814.3,1.10273]
[1743790336245,2.2987,1814.4,1814.3,1.10277]
[1743790337241,9.1723,1814.6,1814.5,1.10265]
[1743790337541,1.7475,1814.6,1814.5,1.10265]
[1743790337842,3.64026902,1814.8,1814.7,1.10252]
[1743790338037,5.29392902,1814.8,1814.7,1.10252]
[1743790338242,1.10269,1814.5,1814.2,1.10283]
[1743790338443,1.10271,1814.4,1814.3,0.75062478]
[1743790338742,1.8526,1814.4,1814.3,1.10277]
[1743790339439,8.52743,1814.6,1814.2,2.75699]
[1743790339745,9.2774,1814.6,1814.5,1.10265]
[1743790339939,10.38002,1814.6,1814.5,1.10265]
[1743790340136,1.10277,1814.3,1814.2,1.7907]
[1743790340341,1.10277,1814.3,1814.1,1.8452]
[1743790340342,2.75708,1814.2,1813.9,1.10297]
[1743790340544,1.103,1814.0,1813.8,3.2078]
[1743790340743,1.10294,1814.1,1813.9,1.10297]
[1743790341246,7.90378,1814.2,1813.8,5.96547]
[1743790341447,7.90378,1814.2,1814.1,1.10289]
[1743790341742,5.31878,1814.3,1814.2,1.10281]
[1743790341936,5.3188,1814.3,1814.2,1.10283]
[1743790342138,5.3188,1814.3,1814.1,1.10284]
[1743790342348,3.2078,1814.2,1814.0,1.10291]
[1743790342544,1.10289,1814.1,1814.0,2.98931]
[1743790342745,1.10289,1814.1,1814.0,1.8864]
[1743790343136,1.73,1814.4,1814.3,1.10277]
[1743790343445,2.83272,1814.4,1814.0,4.64378]
[1743790343646,1.73,1814.4,1814.3,1.10277]
[1743790343941,1.10277,1814.3,1814.0,1.8864]
[1743790344147,1.10279,1814.3,1814.2,1.10281]
[1743790344444,1.10283,1814.3,1814.1,1.10286]
[1743790344649,6.04055,1814.4,1814.2,1.1028]
[1743790344840,1.10277,1814.3,1814.2,1.10283]
[1743790345449,4.9378,1814.4,1814.0,1.8864]
[1743790345745,4.9378,1814.4,1814.1,1.10286]
[1743790345945,1.10286,1814.2,1814.0,2.98932]
[1743790346142,4.31069,1814.1,1814.0,2.98932]
[1743790346448,4.31069,1814.1,1813.9,1.10296]
[1743790346648,1.10295,1814.0,1813.9,2.93186]
[1743790346844,4.9937,1814.1,1813.9,1.8289]
[1743790347048,1.10283,1814.2,1814.1,1.10285]
[1743790347352,7.4228,1814.3,1814.2,1.10283]
[1743790347742,3.2078,1814.3,1814.2,1.10283]
[1743790348245,3.2078,1814.3,1814.2,1.85539159]
[1743790348543,3.2078,1814.3,1814.2,1.10283]
[1743790348842,3.2078,1814.3,1814.2,1.85536996]
[1743790349044,1.73,1814.4,1814.3,1.10277]
[1743790349244,6.15167,1814.7,1814.3,0.75235877]
[1743790349447,3.2078,1814.7,1814.6,1.10259]
[1743790349643,1.10259,1814.6,1814.4,1.8557]
[1743790349846,3.759,1814.7,1814.6,1.10259]
[1743790350045,3.2078,1814.7,1814.6,1.10259]
[1743790350242,1.83066902,1814.8,1814.7,1.10252]
[1743790350450,2.93314902,1814.8,1814.7,2.95822]
[1743790350651,5.03846902,1814.8,1814.5,1.1026]
[1743790350852,1.10256,1814.7,1814.5,1.10265]
[1743790351145,1.10265,1814.5,1814.4,2.97229]
[1743790351350,1.10265,1814.5,1814.4,1.8696]
[1743790351553,10.17928,1814.6,1814.2,1.1028]
[1743790351749,1.9058,1814.4,1814.1,1.8696]
[1743790351952,1.9058,1814.4,1814.2,1.10279]
[1743790352146,1.9058,1814.4,1814.3,1.10277]
[1743790352353,4.215,1814.6,1814.5,1.10265]
[1743790352556,4.86152,1814.7,1814.6,1.10259]
[1743790352853,0.5512,1814.7,1814.6,1.10259]
[1743790353155,2.4294,1814.7,1814.6,1.10259]
[1743790354659,3.53192,1814.7,1814.6,1.10259]
[1743790354861,2.4294,1814.7,1814.6,1.10259]
[1743790355357,1.10274,1814.4,1814.0,7.77185]
[1743790355559,8.52448,1814.5,1814.3,1.10272]
[1743790355760,7.08838,1814.5,1814.4,2.90941]
[1743790355955,1.10263,1814.6,1814.5,1.10265]
[1743790356157,5.86783,1814.6,1814.4,2.90936]
[1743790356360,4.31045,1814.5,1814.4,1.8067]
[1743790356561,5.5626,1814.5,1814.1,1.8964]
[1743790356862,3.2078,1814.3,1813.9,4.5329]
[1743790357162,3.2078,1814.1,1813.9,1.10297]
[1743790357358,1.7219,1814.2,1813.7,4.53853]
[1743790357562,1.7219,1814.2,1814.1,1.10289]
[1743790357763,8.52457,1814.3,1814.2,1.10283]
[1743790358062,7.4218,1814.3,1814.2,1.10283]
[1743790358262,7.4218,1814.3,1814.1,1.10284]
[1743790358454,1.8036,1814.2,1814.0,2.9726]
[1743790358655,4.31069,1814.1,1814.0,2.97265]
[1743790358855,3.2078,1814.1,1814.0,2.97265]
[1743790359058,1.10287,1814.2,1814.0,2.97265]
[1743790359258,8.52462,1814.3,1814.1,1.10289]
[1743790359558,1.10275,1814.4,1814.0,4.62708]
[1743790359761,14.00878,1814.5,1814.4,1.10271]
[1743790359960,5.4853,1814.5,1814.4,1.10271]
[1743790360158,4.213,1814.6,1814.5,1.10265]
[1743790360356,4.86156,1814.7,1814.6,1.10259]
[1743790360357,2.4321,1814.7,1814.6,1.10259]
[1743790360562,0.5512,1814.7,1814.6,1.10259]
[1743790360863,0.00826902,1814.8,1814.7,1.10252]
[1743790361064,0.00826902,1814.8,1814.7,3.7319195]
[1743790361266,0.00826902,1814.8,1814.7,3.73189919]
[1743790361466,10.94219,1815.3,1815.1,1.10226]
[1743790361662,10.94219,1815.3,1815.2,1.8784]
[1743790361866,23.57595042,1815.4,1815.3,1.10216]
[1743790362370,23.57595042,1815.4,1815.3,3.60216]
[1743790362660,23.57595042,1815.4,1815.3,4.35096728]
[1743790362865,23.57595042,1815.4,1815.3,1.10216]
[1743790363267,24.67805042,1815.4,1815.2,3.6791]
[1743790363565,2.97694902,1815.5,1815.2,3.6791]
[1743790363865,1.10216,1815.3,1815.2,1.10218]
[1743790364367,1.10213,1815.4,1815.2,1.10218]
[1743790364558,2.96873,1815.4,1815.3,2.89126]
[1743790364758,2.9687,1815.4,1815.3,1.7891]
[1743790365161,1.10232,1815.1,1814.9,1.1024]
[1743790365356,5.31432,1815.1,1814.9,1.10236]
[1743790365561,1.8666,1815.0,1814.9,1.10236]
[1743790365768,2.96898,1815.0,1814.8,1.10242]
[1743790366068,1.10243,1814.9,1814.7,2.89161]
[1743790366261,1.10246,1814.8,1814.6,1.11082902]
[1743790366470,1.8657,1814.7,1814.6,1.11085902]
[1743790366766,1.8657,1814.7,1814.6,0.00826902]
[1743790366963,2.96822,1814.7,1814.6,0.00826902]
[1743790367165,1.8657,1814.7,1814.6,0.00826902]
[1743790367565,1.8657,1814.7,1814.6,1.11085902]
[1743790368565,4.211,1814.8,1814.7,1.10252]
[1743790368767,5.9941,1814.8,1814.7,2.89862]
[1743790369170,7.09656,1814.8,1814.7,1.7961]
[1743790369368,5.9941,1814.8,1814.7,2.89862]
[1743790369763,3.759,1814.9,1814.8,1.10246]
[1743790369959,5.31337,1815.0,1814.8,1.10246]
[1743790370270,4.211,1815.0,1814.9,1.1024]
[1743790370567,5.9941,1815.0,1814.7,1.7961]
[1743790370870,5.9941,1815.0,1814.9,1.1024]
[1743790371170,4.211,1815.0,1814.9,1.1024]
[1743790371370,9.45873,1815.2,1815.0,1.10232]
[1743790371865,8.3565,1815.2,1815.1,2.90078]
[1743790372067,3.5943,1815.2,1815.1,2.90078]
[1743790372265,3.21606902,1815.5,1815.1,1.7985]
[1743790372567,1.10216,1815.3,1815.2,1.7985]
[1743790372771,1.10225,1815.2,1815.0,1.1023]
[1743790372970,1.10219,1815.3,1815.1,1.10228]
[1743790373266,5.0642,1815.2,1815.0,1.7985]
[1743790373567,6.16646,1815.2,1815.0,2.90084]
[1743790373768,1.10228,1815.1,1815.0,1.7985]
[1743790373980,2.95868,1815.1,1814.9,1.10238]
[1743790374170,1.8564,1815.1,1815.0,1.10234]
[1743790374359,1.8564,1815.1,1814.9,2.90087]
[1743790374564,1.8564,1815.1,1815.0,1.10234]
[1743790374862,1.8564,1815.1,1815.0,2.99654]
[1743790375064,3.6305,1815.4,1815.0,1.8942]
[1743790375260,0.00826902,1815.5,1815.4,1.1021]
[1743790375771,0.00826902,1815.5,1815.2,1.8942]
[1743790375772,1.80576902,1815.5,1815.2,1.8942]
[1743790375965,4.30991,1815.4,1815.2,1.8942]
[1743790376167,1.7975,1815.3,1815.2,2.99642]
[1743790376367,0.00826902,1815.5,1815.4,1.1021]
[1743790376562,1.80576902,1815.5,1815.4,1.1021]
[1743790377066,0.00826902,1815.5,1815.4,3.6021]
[1743790377273,0.00826902,1815.5,1815.4,5.4963]
[1743790377474,34.733,1815.9,1815.8,1.10186]
[1743790377771,3.45042,1816.1,1815.7,2.7548]
[1743790377969,2.3487,1816.1,1816.0,1.10174]
[1743790378168,2.3487,1816.1,1815.9,1.10175]
[1743790378470,2.3487,1816.1,1815.7,1.9044]
[1743790378670,2.3487,1816.1,1815.9,1.10177]
[1743790378870,2.3487,1816.1,1816.0,1.10174]
[1743790379070,2.8992,1816.1,1815.9,1.9044]
[1743790379373,1.1018,1815.9,1815.8,1.11011902]
[1743790379562,1.1018,1815.9,1815.8,0.00826902]
[1743790379770,3.6018,1815.9,1815.8,0.00826902]
[1743790379969,5.4978,1815.9,1815.8,0.00826902]
[1743790382261,2.9978,1815.9,1815.8,0.00826902]
[1743790382475,2.9978,1815.9,1815.3,1.10215]
[1743790382476,1.1021,1815.5,1815.3,1.10215]
[1743790382670,1.8033,1815.4,1815.3,1.10215]
[1743790383271,1.751,1815.8,1815.4,2.75523]
[1743790383475,5.959,1815.8,1815.7,1.10192]
[1743790384169,1.7367,1816.1,1815.7,2.5]
[1743790384377,0.00826902,1816.2,1816.1,1.10167]
[1743790387674,3.21606902,1816.2,1815.6,9.52282]
[1743790387872,3.2078,1816.0,1815.6,6.31514]
[1743790388077,1.8949,1816.1,1815.7,2.75471]
[1743790388272,3.635,1816.1,1816.0,1.10174]
[1743790388577,0.00826902,1816.2,1816.1,1.10167]
[1743790389274,1.10989902,1816.2,1815.9,3.2078]
[1743790389475,1.7401,1816.1,1816.0,1.10174]
[1743790389674,2.84182,1816.1,1815.6,9.52294]
[1743790389978,1.10185,1815.9,1815.7,1.10187]
[1743790390178,2.83702,1815.8,1815.6,1.10192]
[1743790390372,1.7351,1815.8,1815.4,2.76351902]
[1743790390573,6.04481,1815.8,1815.6,1.10193]
[1743790390775,4.9429,1815.8,1815.7,1.10192]
[1743790390974,3.2078,1815.8,1815.7,1.10192]
[1743790391181,1.10181,1815.9,1815.5,2.75508]
[1743790391379,2.83691,1815.9,1815.5,2.75508]
[1743790391584,1.7351,1815.9,1815.8,1.10186]
[1743790391975,3.6978,1816.0,1815.9,1.1018]
[1743790392272,5.4329,1816.0,1815.9,1.1018]
[1743790392472,6.53464,1816.0,1815.8,1.10182]
[1743790392668,6.53464,1816.0,1815.6,2.83574]
[1743790392669,1.1019,1815.8,1815.6,2.83574]
[1743790392883,1.1019,1815.8,1815.5,3.2078]
[1743790393179,2.92877,1815.7,1815.5,4.30982]
[1743790393378,3.2078,1815.6,1815.5,1.10204]
[1743790393683,3.7077,1815.6,1815.4,0.00826902]